[Event "Saint Louis Masters"]
[Date "2024.12.06"]
[White "Shankland, Sam"]
[Black "Can, Isik"]
[WhiteElo "2672"]
[BlackElo "2499"]
[Round "7.3"]
[Result "0-1"]
[TimeControl "5400+30"]

1. Nf3 {[%clk 01:31:00]} d5 {[%clk 01:21:54] [%emt 00:09:06]} 2. g3 {[%clk
01:31:25] [%emt 00:00:05]} g6 {[%clk 01:22:03] [%emt 00:00:21]} 3. Bg2 {[%clk
01:31:35] [%emt 00:00:19]} Bg7 {[%clk 01:22:28] [%emt 00:00:05]} 4. O-O {[%clk
01:31:47] [%emt 00:00:18]} e5 {[%clk 01:19:39] [%emt 00:03:20]} 5. d3 {[%clk
01:32:10] [%emt 00:00:06]} Nc6 {[%clk 01:20:04] [%emt 00:00:06]} 6. Nbd2 {[%clk
01:32:14] [%emt 00:00:25]} Nge7 {[%clk 01:15:13] [%emt 00:05:22]} 7. c4 {[%clk
01:32:29] [%emt 00:00:15]} O-O {[%clk 01:14:37] [%emt 00:01:06]} 8. Rb1 {[%clk
01:32:41] [%emt 00:00:17]} a5 {[%clk 01:13:50] [%emt 00:01:18]} 9. b3 {[%clk
01:32:47] [%emt 00:00:24]} h6 {[%clk 01:10:21] [%emt 00:04:00]} 10. cxd5 {[%clk
01:32:50] [%emt 00:00:26]} Nxd5 {[%clk 01:10:42] [%emt 00:00:10]} 11. Bb2 {[%clk
01:33:13] [%emt 00:00:05]} b6 {[%clk 01:01:45] [%emt 00:09:28]} 12. Nc4 {[%clk
01:15:49] [%emt 00:17:54]} Re8 {[%clk 00:59:55] [%emt 00:02:21]} 13. a3 {[%clk
01:13:27] [%emt 00:02:52]} b5 {[%clk 00:50:12] [%emt 00:10:12]} 14. Ncd2 {[%clk
01:12:23] [%emt 00:01:33]} Ra6 {[%clk 00:43:55] [%emt 00:06:48]} 15. Ne4 {[%clk
01:06:54] [%emt 00:05:58]} Nd4 {[%clk 00:42:48] [%emt 00:01:39]} 16. Rc1 {[%clk
01:03:50] [%emt 00:03:34]} b4 {[%clk 00:38:52] [%emt 00:04:26]} 17. e3 {[%clk
00:59:07] [%emt 00:05:12]} Nb5 {[%clk 00:28:16] [%emt 00:11:06]} 18. a4 {[%clk
00:57:59] [%emt 00:01:38]} Nbc3 {[%clk 00:28:02] [%emt 00:00:44]} 19. Nxc3
{[%clk 00:57:02] [%emt 00:01:26]} Nxc3 {[%clk 00:25:57] [%emt 00:02:36]} 20.
Bxc3 {[%clk 00:56:43] [%emt 00:00:49]} bxc3 {[%clk 00:26:26] [%emt 00:00:01]}
21. Rxc3 {[%clk 00:56:37] [%emt 00:00:36]} e4 {[%clk 00:26:19] [%emt 00:00:37]}
22. Nd4 {[%clk 00:57:02] [%emt 00:00:04]} Bxd4 {[%clk 00:16:56] [%emt 00:09:54]}
23. exd4 {[%clk 00:57:28] [%emt 00:00:05]} e3 {[%clk 00:16:38] [%emt 00:00:48]}
24. fxe3 {[%clk 00:57:39] [%emt 00:00:18]} Rxe3 {[%clk 00:17:04] [%emt
00:00:04]} 25. d5 {[%clk 00:57:48] [%emt 00:00:21]} Rf6 {[%clk 00:16:25] [%emt
00:01:09]} 26. Qd2 {[%clk 00:53:15] [%emt 00:05:02]} Rxf1+ {[%clk 00:15:15]
[%emt 00:01:40]} 27. Bxf1 {[%clk 00:53:39] [%emt 00:00:06]} Re5 {[%clk 00:09:56]
[%emt 00:05:49]} 28. Bg2 {[%clk 00:52:52] [%emt 00:01:17]} Qe7 {[%clk 00:10:25]
[%emt 00:00:01]} 29. Rc1 {[%clk 00:46:10] [%emt 00:07:12]} Re2 {[%clk 00:08:56]
[%emt 00:01:59]} 30. d6 {[%clk 00:43:50] [%emt 00:02:50]} Qe6 {[%clk 00:08:43]
[%emt 00:00:44]} 31. Qf4 {[%clk 00:42:58] [%emt 00:01:22]} g5 {[%clk 00:05:24]
[%emt 00:03:48]} 32. Qf3 {[%clk 00:42:38] [%emt 00:00:50]} Bb7 {[%clk 00:04:57]
[%emt 00:00:58]} 33. Bh3 {[%clk 00:38:21] [%emt 00:04:47]} Qe5 {[%clk 00:04:21]
[%emt 00:01:06]} 34. dxc7 {[%clk 00:38:00] [%emt 00:00:52]} Qd4+ {[%clk
00:04:17] [%emt 00:00:34]} 35. Kf1 {[%clk 00:38:26] [%emt 00:00:04]} Bxf3 {[%clk
00:04:41] [%emt 00:00:06]} 36. c8=Q+ {[%clk 00:38:50] [%emt 00:00:06]} Kg7
{[%clk 00:05:08] [%emt 00:00:03]} 37. Qc3 {[%clk 00:38:10] [%emt 00:01:09]} Rf2+
{[%clk 00:05:30] [%emt 00:00:08]} 38. Ke1 {[%clk 00:38:24] [%emt 00:00:15]} Re2+
{[%clk 00:05:58] [%emt 00:00:03]} 39. Kf1 {[%clk 00:38:44] [%emt 00:00:10]} Qxc3
{[%clk 00:04:38] [%emt 00:01:50]} 40. Rxc3 {[%clk 00:39:13] [%emt 00:00:01]}
Rxh2 {[%clk 00:04:49] [%emt 00:00:20]} 41. Bf5 {[%clk 00:38:38] [%emt 00:01:04]}
Kf6 {[%clk 00:04:21] [%emt 00:00:59]} 42. Be4 {[%clk 00:38:24] [%emt 00:00:43]}
Bxe4 {[%clk 00:04:21] [%emt 00:00:30]} 43. dxe4 {[%clk 00:38:53]} Ke5 {[%clk
00:04:39] [%emt 00:00:12]} 44. Rc5+ {[%clk 00:36:53] [%emt 00:02:30]} Kxe4
{[%clk 00:05:08] [%emt 00:00:01]} 45. Rxa5 {[%clk 00:37:16] [%emt 00:00:08]} Kf3
{[%clk 00:02:34] [%emt 00:03:03]} 46. Rf5+ {[%clk 00:37:22] [%emt 00:00:24]}
Kxg3 {[%clk 00:03:03] [%emt 00:00:02]} 47. Rxf7 {[%clk 00:36:55] [%emt
00:00:57]} h5 {[%clk 00:03:06] [%emt 00:00:26]} 48. a5 {[%clk 00:33:17] [%emt
00:04:08]} g4 {[%clk 00:02:52] [%emt 00:00:45]} 49. Rc7 {[%clk 00:29:55] [%emt
00:03:51]} Ra2 {[%clk 00:02:14] [%emt 00:01:08]} 50. b4 {[%clk 00:26:34] [%emt
00:03:51]} Ra1+ {[%clk 00:00:51] [%emt 00:01:54]} 51. Ke2 {[%clk 00:27:04]} h4
{[%clk 00:01:15] [%emt 00:00:06]} 52. b5 {[%clk 00:20:19] [%emt 00:07:14]} Rxa5
{[%clk 00:01:32] [%emt 00:00:13]} 53. Rc3+ {[%clk 00:20:33] [%emt 00:00:16]} Kg2
{[%clk 00:01:48] [%emt 00:00:14]} 54. Rc4 {[%clk 00:20:21] [%emt 00:00:42]} g3
{[%clk 00:02:04] [%emt 00:00:14]} 0-1

[Site "Europe Echecs"]

[Event "Saint Louis Masters"]
[Date "2024.12.06"]
[White "Oparin, Grigoriy"]
[Black "Kevlishvili, Robby"]
[WhiteElo "2653"]
[BlackElo "2556"]
[Round "7.4"]
[Result "1-0"]
[TimeControl "5400+30"]

1. c4 {[%clk 01:30:57] [%emt 00:00:02]} e6 {[%clk 01:30:54] [%emt 00:00:06]} 2.
g3 {[%clk 01:31:15] [%emt 00:00:12]} d5 {[%clk 01:31:13] [%emt 00:00:10]} 3. Bg2
{[%clk 01:31:41] [%emt 00:00:05]} Nf6 {[%clk 01:31:31] [%emt 00:00:12]} 4. Nf3
{[%clk 01:31:39] [%emt 00:00:31]} dxc4 {[%clk 01:29:20] [%emt 00:02:41]} 5. Qa4+
{[%clk 01:31:55] [%emt 00:00:15]} Nbd7 {[%clk 01:29:33] [%emt 00:00:16]} 6. Qxc4
{[%clk 01:32:15] [%emt 00:00:10]} a6 {[%clk 01:29:54] [%emt 00:00:10]} 7. Qc2
{[%clk 01:31:53] [%emt 00:00:51]} c5 {[%clk 01:28:55] [%emt 00:01:29]} 8. Nc3
{[%clk 01:31:15] [%emt 00:01:09]} Ra7 {[%clk 01:24:51] [%emt 00:04:34]} 9. O-O
{[%clk 01:27:20] [%emt 00:04:25]} b5 {[%clk 01:24:10] [%emt 00:01:10]} 10. d4
{[%clk 01:11:18] [%emt 00:16:33]} Bb7 {[%clk 01:23:09] [%emt 00:01:31]} 11. Be3
{[%clk 01:08:25] [%emt 00:03:23]} Ng4 {[%clk 01:15:44] [%emt 00:07:55]} 12. Bg5
{[%clk 01:08:06] [%emt 00:00:49]} Qa8 {[%clk 01:03:22] [%emt 00:12:52]} 13. d5
{[%clk 00:59:28] [%emt 00:09:09]} exd5 {[%clk 01:01:47] [%emt 00:02:05]} 14. e4
{[%clk 00:59:45] [%emt 00:00:12]} d4 {[%clk 01:01:12] [%emt 00:01:05]} 15. Nd5
{[%clk 01:00:09] [%emt 00:00:06]} Bd6 {[%clk 00:58:46] [%emt 00:02:56]} 16. b4
{[%clk 00:55:46] [%emt 00:04:53]} O-O {[%clk 00:54:01] [%emt 00:05:15]} 17. bxc5
{[%clk 00:32:24] [%emt 00:23:53]} Rc8 {[%clk 00:52:11] [%emt 00:02:20]} 18. Nxd4
{[%clk 00:29:34] [%emt 00:03:20]} Bxc5 {[%clk 00:41:37] [%emt 00:11:04]} 19. Qb2
{[%clk 00:29:03] [%emt 00:01:01]} Nde5 {[%clk 00:33:52] [%emt 00:08:14]} 20.
Rad1 {[%clk 00:27:29] [%emt 00:02:03]} Nc4 {[%clk 00:26:00] [%emt 00:08:22]} 21.
Qe2 {[%clk 00:27:07] [%emt 00:00:52]} Nge5 {[%clk 00:26:13] [%emt 00:00:18]} 22.
Nf5 {[%clk 00:26:40] [%emt 00:00:57]} Kh8 {[%clk 00:24:04] [%emt 00:02:39]} 23.
Qh5 {[%clk 00:22:59] [%emt 00:04:12]} Bxd5 {[%clk 00:23:54] [%emt 00:00:40]} 24.
exd5 {[%clk 00:23:13] [%emt 00:00:16]} f6 {[%clk 00:23:51] [%emt 00:00:32]} 25.
d6 {[%clk 00:21:15] [%emt 00:02:29]} Qb8 {[%clk 00:24:15] [%emt 00:00:06]} 26.
Bf4 {[%clk 00:08:11] [%emt 00:13:34]} Nxd6 {[%clk 00:22:16] [%emt 00:02:29]} 27.
Bxe5 {[%clk 00:07:40] [%emt 00:01:01]} fxe5 {[%clk 00:22:34] [%emt 00:00:12]}
28. Nh4 {[%clk 00:05:31] [%emt 00:02:40]} Nf7 {[%clk 00:15:08] [%emt 00:07:56]}
29. Be4 {[%clk 00:05:38] [%emt 00:00:23]} Nh6 {[%clk 00:15:22] [%emt 00:00:15]}
30. g4 {[%clk 00:04:10] [%emt 00:01:58]} Qb6 {[%clk 00:12:49] [%emt 00:03:04]}
31. g5 {[%clk 00:03:08] [%emt 00:01:32]} g6 {[%clk 00:13:08] [%emt 00:00:11]}
32. Qxh6 {[%clk 00:01:50] [%emt 00:01:48]} Bf8 {[%clk 00:13:34] [%emt 00:00:04]}
33. Nxg6+ {[%clk 00:01:36] [%emt 00:00:44]} Qxg6 {[%clk 00:13:59] [%emt
00:00:04]} 34. Qxg6 {[%clk 00:01:50] [%emt 00:00:16]} hxg6 {[%clk 00:14:24]
[%emt 00:00:05]} 35. Rd5 {[%clk 00:02:10] [%emt 00:00:10]} Rc4 {[%clk 00:06:48]
[%emt 00:08:07]} 36. f3 {[%clk 00:02:36] [%emt 00:00:04]} Kg7 {[%clk 00:07:03]
[%emt 00:00:15]} 37. Rfd1 {[%clk 00:01:56] [%emt 00:01:10]} Bc5+ {[%clk
00:05:21] [%emt 00:02:12]} 38. Kg2 {[%clk 00:01:43] [%emt 00:00:43]} Re7 {[%clk
00:05:25] [%emt 00:00:28]} 39. h4 {[%clk 00:01:26] [%emt 00:00:46]} Kf7 {[%clk
00:04:30] [%emt 00:01:25]} 40. Rd8 {[%clk 00:01:05] [%emt 00:00:50]} Rd4 {[%clk
00:03:45] [%emt 00:01:15]} 41. R1xd4 {[%clk 00:01:08] [%emt 00:00:28]} exd4
{[%clk 00:04:03] [%emt 00:00:12]} 42. Rc8 {[%clk 00:01:05] [%emt 00:00:33]} Bd6
{[%clk 00:03:58] [%emt 00:00:34]} 43. Rc6 {[%clk 00:01:26] [%emt 00:00:09]} Ke6
{[%clk 00:03:24] [%emt 00:01:04]} 44. Rxa6 {[%clk 00:01:08] [%emt 00:00:48]} Rg7
{[%clk 00:02:40] [%emt 00:01:14]} 45. f4 {[%clk 00:01:05] [%emt 00:00:33]} d3
{[%clk 00:02:42] [%emt 00:00:27]} 46. Bxd3 {[%clk 00:01:22] [%emt 00:00:13]} Kd5
{[%clk 00:03:09] [%emt 00:00:03]} 47. Kf3 {[%clk 00:01:16] [%emt 00:00:36]} Rf7
{[%clk 00:03:36] [%emt 00:00:03]} 48. Be4+ {[%clk 00:01:13] [%emt 00:00:34]} 1-0

[Site "Europe Echecs"]

[Event "Saint Louis Masters"]
[Date "2024.12.06"]
[White "Kacharava, Nikolozi"]
[Black "Donchenko, Alexander"]
[WhiteElo "2510"]
[BlackElo "2618"]
[Round "7.5"]
[Result "1/2-1/2"]
[TimeControl "5400+30"]

1. e4 {[%clk 01:30:53] [%emt 00:00:06]} c6 {[%clk 01:29:51] [%emt 00:01:09]} 2.
d4 {[%clk 01:30:48] [%emt 00:00:34]} d5 {[%clk 01:30:15] [%emt 00:00:07]} 3. e5
{[%clk 01:30:04] [%emt 00:01:14]} Bf5 {[%clk 01:30:32] [%emt 00:00:13]} 4. h4
{[%clk 01:30:00] [%emt 00:00:34]} h5 {[%clk 01:30:50] [%emt 00:00:12]} 5. Bd3
{[%clk 01:29:34] [%emt 00:00:56]} Bxd3 {[%clk 01:31:12] [%emt 00:00:08]} 6. Qxd3
{[%clk 01:29:57] [%emt 00:00:07]} Qa5+ {[%clk 01:31:31] [%emt 00:00:10]} 7. Nd2
{[%clk 01:29:11] [%emt 00:01:16]} e6 {[%clk 01:31:50] [%emt 00:00:12]} 8. Ngf3
{[%clk 01:28:23] [%emt 00:01:17]} Nh6 {[%clk 01:31:56] [%emt 00:00:24]} 9. c3
{[%clk 01:27:35] [%emt 00:01:19]} Nf5 {[%clk 01:25:16] [%emt 00:07:11]} 10. a4
{[%clk 01:27:05] [%emt 00:01:00]} Be7 {[%clk 01:08:45] [%emt 00:17:01]} 11. b4
{[%clk 01:26:04] [%emt 00:01:30]} Qd8 {[%clk 01:08:42] [%emt 00:00:33]} 12. Nb3
{[%clk 01:16:22] [%emt 00:10:12]} b6 {[%clk 01:06:43] [%emt 00:02:29]} 13. Bg5
{[%clk 01:13:29] [%emt 00:03:22]} Nd7 {[%clk 01:06:29] [%emt 00:00:44]} 14. Qe2
{[%clk 01:01:32] [%emt 00:12:28]} a5 {[%clk 00:56:27] [%emt 00:10:33]} 15. bxa5
{[%clk 01:00:28] [%emt 00:01:33]} bxa5 {[%clk 00:56:41] [%emt 00:00:16]} 16. Rb1
{[%clk 00:53:09] [%emt 00:07:50]} g6 {[%clk 00:50:54] [%emt 00:06:17]} 17. g3
{[%clk 00:50:48] [%emt 00:02:50]} Kf8 {[%clk 00:49:05] [%emt 00:02:20]} 18. Kf1
{[%clk 00:48:42] [%emt 00:02:36]} Kg7 {[%clk 00:49:13] [%emt 00:00:21]} 19. Kg2
{[%clk 00:49:05] [%emt 00:00:07]} Qc7 {[%clk 00:38:27] [%emt 00:11:16]} 20. Bxe7
{[%clk 00:45:41] [%emt 00:03:54]} Nxe7 {[%clk 00:38:55] [%emt 00:00:02]} 21. Rb2
{[%clk 00:34:34] [%emt 00:11:38]} Rab8 {[%clk 00:38:44] [%emt 00:00:41]} 22.
Rhb1 {[%clk 00:33:53] [%emt 00:01:10]} Nf5 {[%clk 00:35:51] [%emt 00:03:23]} 23.
Nc5 {[%clk 00:16:41] [%emt 00:17:42]} Rxb2 {[%clk 00:34:59] [%emt 00:01:23]} 24.
Qxb2 {[%clk 00:13:27] [%emt 00:03:43]} Rb8 {[%clk 00:35:05] [%emt 00:00:25]} 25.
Qc1 {[%clk 00:13:34] [%emt 00:00:22]} Nxc5 {[%clk 00:17:15] [%emt 00:18:20]} 26.
dxc5 {[%clk 00:13:55] [%emt 00:00:10]} Qd8 {[%clk 00:17:38] [%emt 00:00:07]} 27.
Rxb8 {[%clk 00:11:14] [%emt 00:03:11]} Qxb8 {[%clk 00:18:06]} 28. Qg5 {[%clk
00:11:24] [%emt 00:00:19]} Kg8 {[%clk 00:17:59] [%emt 00:00:38]} 29. Qf6 {[%clk
00:08:03] [%emt 00:03:52]} Qe8 {[%clk 00:17:48] [%emt 00:00:41]} 30. Nd4 {[%clk
00:06:48] [%emt 00:01:45]} Nxd4 {[%clk 00:15:58] [%emt 00:02:20]} 31. cxd4
{[%clk 00:07:16] [%emt 00:00:01]} Qb8 {[%clk 00:16:22] [%emt 00:00:06]} 32. Qe7
{[%clk 00:05:41] [%emt 00:02:05]} Kg7 {[%clk 00:16:24] [%emt 00:00:28]} 33. Qf6+
{[%clk 00:05:13] [%emt 00:00:58]} Kg8 {[%clk 00:16:53]} 34. Qe7 {[%clk 00:05:29]
[%emt 00:00:14]} Kg7 {[%clk 00:17:05] [%emt 00:00:18]} 1/2-1/2

[Site "Europe Echecs"]

[Event "Saint Louis Masters"]
[Date "2024.12.06"]
[White "Dudin, Gleb"]
[Black "Zhou, Jianchao"]
[WhiteElo "2506"]
[BlackElo "2572"]
[Round "7.6"]
[Result "1/2-1/2"]
[TimeControl "5400+30"]

1. d4 {[%clk 01:21:15] [%emt 00:09:44]} Nf6 {[%clk 01:30:05] [%emt 00:00:55]} 2.
c4 {[%clk 01:21:35] [%emt 00:00:09]} g6 {[%clk 01:30:33] [%emt 00:00:04]} 3. Nc3
{[%clk 01:21:46] [%emt 00:00:19]} Bg7 {[%clk 01:31:00] [%emt 00:00:03]} 4. e4
{[%clk 01:22:05] [%emt 00:00:11]} d6 {[%clk 01:31:28] [%emt 00:00:02]} 5. Be2
{[%clk 01:22:24] [%emt 00:00:11]} O-O {[%clk 01:31:54] [%emt 00:00:03]} 6. Be3
{[%clk 01:22:47] [%emt 00:00:07]} Nc6 {[%clk 01:32:01] [%emt 00:00:23]} 7. d5
{[%clk 01:22:35] [%emt 00:00:41]} Ne5 {[%clk 01:32:29] [%emt 00:00:02]} 8. Nf3
{[%clk 01:22:56] [%emt 00:00:09]} Nfg4 {[%clk 01:30:23] [%emt 00:02:37]} 9. Bg5
{[%clk 01:22:50] [%emt 00:00:35]} Nxf3+ {[%clk 01:26:45] [%emt 00:04:08]} 10.
Bxf3 {[%clk 01:22:24] [%emt 00:00:56]} Bxc3+ {[%clk 01:22:25] [%emt 00:04:50]}
11. bxc3 {[%clk 01:22:47] [%emt 00:00:08]} f6 {[%clk 01:22:29] [%emt 00:00:26]}
12. Bh4 {[%clk 01:23:02] [%emt 00:00:15]} Ne5 {[%clk 01:18:54] [%emt 00:04:05]}
13. Be2 {[%clk 01:23:23] [%emt 00:00:07]} g5 {[%clk 01:15:48] [%emt 00:03:37]}
14. Bg3 {[%clk 01:23:47] [%emt 00:00:07]} Kh8 {[%clk 01:13:46] [%emt 00:02:32]}
15. h4 {[%clk 01:21:35] [%emt 00:02:42]} g4 {[%clk 01:14:02] [%emt 00:00:15]}
16. c5 {[%clk 01:04:39] [%emt 00:17:25]} Rg8 {[%clk 01:08:52] [%emt 00:05:40]}
17. Qd4 {[%clk 01:02:25] [%emt 00:02:44]} Nd7 {[%clk 00:58:07] [%emt 00:11:15]}
18. cxd6 {[%clk 01:01:11] [%emt 00:01:43]} cxd6 {[%clk 00:58:31] [%emt
00:00:06]} 19. O-O {[%clk 00:59:04] [%emt 00:02:36]} b6 {[%clk 00:51:57] [%emt
00:07:05]} 20. a4 {[%clk 00:41:51] [%emt 00:17:42]} a5 {[%clk 00:40:33] [%emt
00:11:55]} 21. Bb5 {[%clk 00:37:51] [%emt 00:04:30]} Ne5 {[%clk 00:40:41] [%emt
00:00:22]} 22. Rab1 {[%clk 00:36:29] [%emt 00:01:51]} Qc7 {[%clk 00:36:59] [%emt
00:04:13]} 23. Bxe5 {[%clk 00:24:02] [%emt 00:12:56]} fxe5 {[%clk 00:36:06]
[%emt 00:01:23]} 24. Qe3 {[%clk 00:23:40] [%emt 00:00:52]} Ba6 {[%clk 00:35:30]
[%emt 00:01:07]} 25. c4 {[%clk 00:20:10] [%emt 00:04:00]} 1/2-1/2

[Site "Europe Echecs"]

[Event "Saint Louis Masters"]
[Date "2024.12.06"]
[White "Cordova, Emilio"]
[Black "Saric, Ivan"]
[WhiteElo "2531"]
[BlackElo "2669"]
[Round "7.7"]
[Result "1/2-1/2"]
[TimeControl "5400+30"]

1. Nf3 {[%clk 01:29:01] [%emt 00:01:56]} d5 {[%clk 01:30:34] [%emt 00:00:29]} 2.
g3 {[%clk 01:28:12] [%emt 00:01:19]} Bg4 {[%clk 01:26:57] [%emt 00:04:07]} 3.
Bg2 {[%clk 01:28:25] [%emt 00:00:17]} c6 {[%clk 01:27:20] [%emt 00:00:09]} 4. h3
{[%clk 01:27:34] [%emt 00:01:20]} Bxf3 {[%clk 01:26:36] [%emt 00:01:14]} 5. Bxf3
{[%clk 01:27:11] [%emt 00:00:53]} e5 {[%clk 01:26:00] [%emt 00:01:06]} 6. d3
{[%clk 01:27:11] [%emt 00:00:29]} Nf6 {[%clk 01:26:25] [%emt 00:00:06]} 7. O-O
{[%clk 01:26:38] [%emt 00:01:01]} Nbd7 {[%clk 01:26:45] [%emt 00:00:12]} 8. e4
{[%clk 01:24:38] [%emt 00:02:29]} dxe4 {[%clk 01:25:57] [%emt 00:01:18]} 9. dxe4
{[%clk 01:25:02] [%emt 00:00:06]} Bc5 {[%clk 01:23:33] [%emt 00:02:54]} 10. a4
{[%clk 01:23:39] [%emt 00:01:53]} a5 {[%clk 01:23:21] [%emt 00:00:43]} 11. Nd2
{[%clk 01:20:44] [%emt 00:03:25]} O-O {[%clk 01:17:21] [%emt 00:06:30]} 12. Qe2
{[%clk 01:19:03] [%emt 00:02:10]} Qe7 {[%clk 01:16:37] [%emt 00:01:15]} 13. Rd1
{[%clk 01:14:47] [%emt 00:04:45]} Rfe8 {[%clk 01:08:57] [%emt 00:08:11]} 14. Kg2
{[%clk 01:00:16] [%emt 00:15:00]} Nf8 {[%clk 01:05:09] [%emt 00:04:19]} 15. Nc4
{[%clk 00:42:32] [%emt 00:18:14]} Ne6 {[%clk 01:04:57] [%emt 00:00:42]} 16. c3
{[%clk 00:41:52] [%emt 00:01:10]} Qc7 {[%clk 01:05:22] [%emt 00:00:05]} 17. h4
{[%clk 00:42:12] [%emt 00:00:10]} h6 {[%clk 01:05:39] [%emt 00:00:13]} 18. Bd2
{[%clk 00:41:21] [%emt 00:01:20]} Red8 {[%clk 01:04:15] [%emt 00:01:55]} 19. Be1
{[%clk 00:41:44] [%emt 00:00:06]} Rxd1 {[%clk 01:04:20] [%emt 00:00:26]} 20.
Rxd1 {[%clk 00:42:10] [%emt 00:00:04]} b5 {[%clk 01:03:26] [%emt 00:01:25]} 21.
axb5 {[%clk 00:42:16] [%emt 00:00:23]} cxb5 {[%clk 01:03:52] [%emt 00:00:04]}
22. Ne3 {[%clk 00:41:58] [%emt 00:00:47]} Bxe3 {[%clk 01:04:06] [%emt 00:00:17]}
23. Qxe3 {[%clk 00:42:15] [%emt 00:00:12]} a4 {[%clk 00:56:51] [%emt 00:07:47]}
24. Qd3 {[%clk 00:19:39] [%emt 00:23:04]} Rb8 {[%clk 00:53:25] [%emt 00:03:57]}
25. Qd6 {[%clk 00:06:16] [%emt 00:13:52]} Qxd6 {[%clk 00:53:29] [%emt 00:00:27]}
26. Rxd6 {[%clk 00:06:42] [%emt 00:00:04]} Nc5 {[%clk 00:51:26] [%emt 00:02:32]}
27. Be2 {[%clk 00:06:48] [%emt 00:00:24]} Ncxe4 {[%clk 00:51:33] [%emt
00:00:24]} 28. Rc6 {[%clk 00:07:09] [%emt 00:00:08]} Ne8 {[%clk 00:51:47] [%emt
00:00:15]} 29. f3 {[%clk 00:07:23] [%emt 00:00:16]} N4d6 {[%clk 00:52:05] [%emt
00:00:13]} 30. Bf2 {[%clk 00:06:01] [%emt 00:01:52]} Nc4 {[%clk 00:35:34] [%emt
00:17:01]} 31. Bxc4 {[%clk 00:06:15] [%emt 00:00:16]} bxc4 {[%clk 00:36:02]
[%emt 00:00:02]} 32. Rxc4 {[%clk 00:06:38] [%emt 00:00:07]} Rxb2 {[%clk
00:35:58] [%emt 00:00:34]} 33. Rxa4 {[%clk 00:07:02] [%emt 00:00:06]} Nd6 {[%clk
00:35:58] [%emt 00:00:31]} 34. c4 {[%clk 00:03:05] [%emt 00:04:27]} Rc2 {[%clk
00:31:43] [%emt 00:04:44]} 35. c5 {[%clk 00:03:21] [%emt 00:00:13]} Nf5 {[%clk
00:31:55] [%emt 00:00:19]} 36. Kf1 {[%clk 00:03:40] [%emt 00:00:09]} f6 {[%clk
00:31:26] [%emt 00:01:01]} 37. g4 {[%clk 00:03:16] [%emt 00:00:53]} Ne7 {[%clk
00:30:04] [%emt 00:01:53]} 38. f4 {[%clk 00:03:20] [%emt 00:00:25]} exf4 {[%clk
00:23:11] [%emt 00:07:24]} 39. Rxf4 {[%clk 00:03:46] [%emt 00:00:04]} Ng6 {[%clk
00:23:38] [%emt 00:00:03]} 40. Rd4 {[%clk 00:01:56] [%emt 00:02:18]} Ne5 {[%clk
00:22:49] [%emt 00:01:20]} 41. g5 {[%clk 00:02:14] [%emt 00:00:12]} hxg5 {[%clk
00:22:55] [%emt 00:00:25]} 42. hxg5 {[%clk 00:02:41] [%emt 00:00:03]} fxg5
{[%clk 00:22:49] [%emt 00:00:36]} 43. Rd5 {[%clk 00:02:21] [%emt 00:00:50]} Nf7
{[%clk 00:17:40] [%emt 00:05:40]} 44. Be3 {[%clk 00:02:21] [%emt 00:00:28]} g4
{[%clk 00:17:46] [%emt 00:00:25]} 45. Bd2 {[%clk 00:02:06] [%emt 00:00:44]} Kf8
{[%clk 00:17:16] [%emt 00:01:01]} 46. Bg5 {[%clk 00:01:55] [%emt 00:00:41]} Ke8
{[%clk 00:15:44] [%emt 00:02:02]} 47. Kg1 {[%clk 00:02:18] [%emt 00:00:07]} Kf8
{[%clk 00:14:27] [%emt 00:01:48]} 48. Kf1 {[%clk 00:02:43] [%emt 00:00:04]} Nh6
{[%clk 00:14:10] [%emt 00:00:46]} 49. Rd4 {[%clk 00:02:06] [%emt 00:01:07]} Nf5
{[%clk 00:14:10] [%emt 00:00:31]} 50. Rxg4 {[%clk 00:02:27] [%emt 00:00:09]} Kf7
{[%clk 00:14:15] [%emt 00:00:25]} 51. c6 {[%clk 00:02:13] [%emt 00:00:44]} Rxc6
{[%clk 00:14:39] [%emt 00:00:06]} 52. Bd2 {[%clk 00:02:39] [%emt 00:00:03]} Rd6
{[%clk 00:14:16] [%emt 00:00:54]} 53. Ke2 {[%clk 00:02:53] [%emt 00:00:16]} Nd4+
{[%clk 00:14:41] [%emt 00:00:05]} 54. Kf2 {[%clk 00:03:17] [%emt 00:00:06]} Ne6
{[%clk 00:15:08] [%emt 00:00:03]} 55. Be3 {[%clk 00:03:37] [%emt 00:00:10]} Rd5
{[%clk 00:15:34] [%emt 00:00:05]} 56. Kf3 {[%clk 00:04:01] [%emt 00:00:05]} g5
{[%clk 00:15:52] [%emt 00:00:12]} 57. Re4 {[%clk 00:04:15] [%emt 00:00:15]} Kf6
{[%clk 00:15:55] [%emt 00:00:27]} 58. Kg4 {[%clk 00:04:39] [%emt 00:00:06]} Rd1
{[%clk 00:15:38] [%emt 00:00:48]} 59. Ra4 {[%clk 00:03:19] [%emt 00:01:50]} Re1
{[%clk 00:15:45] [%emt 00:00:22]} 60. Ra3 {[%clk 00:03:37] [%emt 00:00:12]} Rh1
{[%clk 00:14:30] [%emt 00:01:45]} 61. Ra6 {[%clk 00:03:44] [%emt 00:00:23]} Rh4+
{[%clk 00:14:55] [%emt 00:00:06]} 62. Kg3 {[%clk 00:03:23] [%emt 00:00:50]} Re4
{[%clk 00:15:02] [%emt 00:00:23]} 63. Kf3 {[%clk 00:03:48] [%emt 00:00:06]} Rc4
{[%clk 00:15:13] [%emt 00:00:20]} 1/2-1/2

[Site "Europe Echecs"]